fUST/lending_fUST_20240628
["ID","MTS","AMOUNT","RATE_DAILY","PERIOD"]
[330502688,1719522644089,-417.5784876,0.00043835,120]
[330502689,1719522644102,-82.4215124,0.00043835,120]
[330502690,1719522644112,-545.53,0.00043835,120]
[330502691,1719522644122,-500.0,0.00043835,2]
[330502692,1719522644133,-500.0,0.00043835,120]
[330502693,1719522644144,-500.0,0.00043835,120]
[330502694,1719522644154,-500.0,0.00043835,120]
[330502695,1719522644164,-500.0,0.00043835,120]
[330502696,1719522644174,-709.9,0.00043835,120]
[330502697,1719522644184,-500.0,0.00043835,120]
[330502698,1719522644193,-500.0,0.00043835,120]
[330502699,1719522644203,-500.0,0.00043835,120]
[330502700,1719522644212,-523.94,0.00043835,120]
[330502701,1719522644222,-500.0,0.00043835,120]
[330502702,1719522644233,-500.0,0.00043835,120]
[330502703,1719522644242,-673.04,0.00043835,120]
[330502704,1719522644252,-500.0,0.00043835,120]
[330502705,1719522644263,-475.19079176,0.00043835,120]
[330502706,1719522644273,-500.0,0.00043835,120]
[330502707,1719522644282,-500.0,0.00043835,120]
[330502708,1719522644291,-502.91699873,0.00043835,120]
[330502709,1719522644300,-500.0,0.00043835,120]
[330502710,1719522644309,-500.0,0.00043835,120]
[330502711,1719522644319,-500.0,0.00043835,120]
[330502712,1719522644328,-522.39,0.00043835,120]
[330502713,1719522644337,-524.31,0.00043835,60]
[330502714,1719522644347,-546.37185699,0.00043835,120]
[330502715,1719522644356,-500.0,0.00043835,120]
[330502716,1719522644366,-570.41,0.00043835,120]
[330502717,1719522644375,-500.0,0.00043835,120]
[330502718,1719522644384,-500.0,0.00043835,120]
[330502719,1719522644393,-500.0,0.00043835,120]
[330502720,1719522644403,-500.0,0.00043835,120]
[330502721,1719522644412,-357.02079771,0.00043835,120]
[330502722,1719522644421,-500.0,0.00043835,120]
[330502723,1719522644430,-500.0,0.00043835,120]
[330502724,1719522644439,-776.65,0.00043835,120]
[330502725,1719522644449,-500.0,0.00043835,120]
[330502726,1719522644463,-500.0,0.00043835,120]
[330502727,1719522644471,-500.0,0.00043835,120]
[330502728,1719522644584,-1314.01,0.00043835,120]
[330502729,1719522644593,-500.0,0.00043835,120]
[330502730,1719522644603,-500.0,0.00043835,120]
[330502731,1719522644612,-500.0,0.00043835,120]
[330502732,1719522644622,-500.0,0.00043835,120]
[330502733,1719522644632,-500.0,0.00043835,120]
[330502734,1719522644641,-500.0,0.00043835,120]
[330502735,1719522644652,-151.0,0.00043835,14]
[330502736,1719522644661,-151.0,0.00043835,14]
[330502737,1719522644670,-500.0,0.00043835,30]
[330502738,1719522644679,-151.0,0.00043835,14]
[330502739,1719522644688,-155.231127,0.00043835,14]
[330502740,1719522644698,-500.0,0.00043835,120]
[330502741,1719522644707,-173.43682156,0.00043835,120]
[330502742,1719522644716,-793.36,0.00043835,120]
[330502743,1719522644725,-500.0,0.00043835,120]
[330502744,1719522644734,-500.0,0.00043835,120]
[330502745,1719522644743,-717.44,0.00043835,120]
[330502746,1719522644752,-500.0,0.00043835,120]
[330502747,1719522644763,-500.0,0.00043835,120]
[330502748,1719522644772,-500.0,0.00043835,120]
[330502749,1719522644781,-500.0,0.00043835,120]
[330502750,1719522644790,-500.0,0.00043835,120]
[330502751,1719522644800,-500.0,0.00043835,120]
[330502752,1719522644809,-500.0,0.00043835,120]
[330502753,1719522644818,-500.0,0.00043835,120]
[330502754,1719522644827,-500.0,0.00043835,120]
[330502755,1719522644838,-500.0,0.00043835,120]
[330502756,1719522644848,-500.0,0.00043835,120]
[330502757,1719522644858,-500.0,0.00043835,120]
[330502758,1719522644867,-500.0,0.00043835,120]
[330502759,1719522644877,-500.0,0.00043835,120]
[330502760,1719522644886,-460.56897958,0.00043835,120]
[330502761,1719522644895,-500.0,0.00043835,120]
[330502762,1719522644905,-500.0,0.00043835,120]
[330502763,1719522644914,-528.92324313,0.00043835,120]
[330502764,1719522644924,-1768.49,0.00043835,120]
[330502765,1719522644933,-500.0,0.00043835,120]
[330502766,1719522644942,-540.83,0.00043835,120]
[330502767,1719522644952,-500.0,0.00043835,120]
[330502768,1719522644961,-706.14,0.00043835,120]
[330502769,1719522644970,-500.0,0.00043835,120]
[330502770,1719522644979,-562.6147081,0.00043835,120]
[330502771,1719522644987,-151.0,0.00043835,14]
[330502772,1719522644996,-984.46,0.00043835,120]
[330502773,1719522645005,-500.0,0.00043835,120]
[330502774,1719522645015,-500.23948693,0.00043835,120]
[330502775,1719522645023,-500.0,0.00043835,120]
[330502776,1719522645032,-500.0,0.00043835,120]
[330502777,1719522645041,-525.89,0.00043835,120]
[330502778,1719522645050,-500.0,0.00043835,120]
[330502779,1719522645059,-500.0,0.00043835,120]
[330502780,1719522645067,-500.0,0.00043835,120]
[330502781,1719522645076,-500.0,0.00043835,120]
[330502782,1719522645085,-1670.7,0.00043835,120]
[330502783,1719522645094,-199.66112369,0.00043835,120]
[330502784,1719522645103,-424.2705429,0.00043835,120]
[330502785,1719522645111,-500.0,0.00043835,120]
[330502786,1719522645120,-500.0,0.00043835,120]
[330502787,1719522645129,-151.0,0.00043835,14]
[330502788,1719522645139,-151.0,0.00043835,14]
[330502789,1719522645148,-151.0,0.00043835,14]
[330502790,1719522645157,-151.0,0.00043835,14]
[330502791,1719522645166,-500.0,0.00043835,120]
[330502792,1719522645175,-500.0,0.00043835,120]
[330502793,1719522645184,-500.0,0.00043835,120]
[330502794,1719522645193,-903.37,0.00043835,120]
[330502795,1719522645202,-500.0,0.00043835,30]
[330502796,1719522645211,-500.0,0.00043835,120]
[330502797,1719522645221,-500.0,0.00043835,120]
[330502798,1719522645230,-500.0,0.00043835,120]
[330502799,1719522645239,-500.0,0.00043835,120]
[330502800,1719522645248,-500.0,0.00043835,120]
[330502801,1719522645258,-1637.65,0.00043835,120]
[330502802,1719522645268,-151.0,0.00043835,14]
[330502803,1719522645278,-500.0,0.00043835,120]
[330502804,1719522645287,-500.0,0.00043835,120]
[330502805,1719522645296,-355.80137216,0.00043835,120]
[330502806,1719522645306,-500.0,0.00043835,120]
[330502807,1719522645315,-500.0,0.00043835,120]
[330502808,1719522645324,-500.0,0.00043835,120]
[330502809,1719522645333,-500.0,0.00043835,120]
[330502810,1719522645343,-1130.96,0.00043835,120]
[330502811,1719522645352,-500.0,0.00043835,120]
[330502812,1719522645361,-327.12525575,0.00043835,120]
[330502813,1719522645370,-513.98475747,0.00043835,120]
[330502814,1719522645380,-559.23,0.00043835,120]
[330502815,1719522645389,-500.0,0.00043835,120]
[330502816,1719522645398,-601.12,0.00043835,120]
[330502817,1719522645408,-500.0,0.00043835,120]
[330502818,1719522645417,-500.0,0.00043835,120]
[330502819,1719522645426,-36025.19229435,0.00043835,120]
[330502840,1719522646983,-427.50730024,0.00034422,4]
[330502841,1719522646993,-97.94220326,0.00040899,2]
[330502842,1719522647005,-257.57767027,0.00040899,2]
[330502843,1719522647015,-270.37905555,0.00040999,4]
[330502844,1719522647024,-2715.62,0.00042181,3]
[330502845,1719522647033,-355.51987353,0.000429,2]
[330502846,1719522647043,-10626.05770565,0.00043835,120]
[330502847,1719522647052,-500.0,0.00043835,120]
[330502848,1719522647061,-500.0,0.00043835,120]
[330502849,1719522647071,-500.0,0.00043835,120]
[330502850,1719522647080,-151.0,0.00043835,14]
[330502852,1719522647089,-500.0,0.00043835,120]
[330502854,1719522647099,-1430.23,0.00043835,120]
[330502856,1719522647108,-153.219299,0.00043835,14]
[330502858,1719522647117,-500.0,0.00043835,120]
[330502860,1719522647127,-500.0,0.00043835,120]
[330502862,1719522647136,-500.0,0.00043835,120]
[330502864,1719522647146,-500.0,0.00043835,120]
[330502867,1719522647155,-1236.11,0.00043835,120]
[330502869,1719522647165,-500.0,0.00043835,120]
[330502870,1719522647174,-4759.21,0.00043835,21]
[330502871,1719522647183,-500.0,0.00043835,120]
[330502872,1719522647192,-151.0,0.00043835,14]
[330502874,1719522647201,-500.0,0.00043835,120]
[330502877,1719522647211,-151.0,0.00043835,14]
[330502878,1719522647221,-500.0,0.00043835,120]
[330502879,1719522647231,-151.0,0.00043835,14]
[330502881,1719522647240,-151.0,0.00043835,14]
[330502882,1719522647249,-271.127717,0.00043835,14]
[330502883,1719522647258,-500.0,0.00043835,120]
[330502885,1719522647269,-500.0,0.00043835,120]
[330502887,1719522647278,-500.0,0.00043835,120]
[330502889,1719522647288,-640.41434821,0.00043835,120]
[330502891,1719522647297,-500.0,0.00043835,120]
[330502893,1719522647306,-500.0,0.00043835,120]
[330502894,1719522647316,-500.0,0.00043835,120]
[330502895,1719522647325,-500.0,0.00043835,120]
[330502896,1719522647335,-500.0,0.00043835,120]
[330502897,1719522647344,-1625.36,0.00043835,120]
[330502898,1719522647354,-1025.76,0.00043835,120]
[330502899,1719522647363,-7942.16,0.00043835,120]
[330502900,1719522647372,-582.96,0.00043835,120]
[330502901,1719522647382,-604.66731022,0.00043835,120]
[330502902,1719522647392,-151.0,0.00043835,14]
[330502903,1719522647401,-151.0,0.00043835,14]
[330502904,1719522647410,-151.0,0.00043835,14]
[330502905,1719522647420,-500.0,0.00043835,120]
[330502906,1719522647429,-500.0,0.00043835,120]
[330502907,1719522647439,-500.0,0.00043835,120]
[330502908,1719522647449,-151.0,0.00043835,14]
[330502909,1719522647463,-2312.53,0.00043835,120]
[330502910,1719522647473,-151.0,0.00043835,14]
[330502911,1719522647482,-151.0,0.00043835,14]
[330502912,1719522647491,-500.0,0.00043835,120]
[330502913,1719522647502,-500.0,0.00043835,120]
[330502914,1719522647512,-500.0,0.00043835,30]
[330502915,1719522647522,-500.0,0.00043835,120]
[330502916,1719522647531,-526.31904225,0.00043835,120]
[330502917,1719522647543,-793.32,0.00043835,120]
[330502918,1719522647552,-151.0,0.00043835,14]
[330502919,1719522647561,-151.0,0.00043835,14]
[330502920,1719522647570,-151.0,0.00043835,14]
[330502921,1719522647580,-151.0,0.00043835,14]
[330502922,1719522647589,-500.0,0.00043835,120]
[330502923,1719522647598,-151.0,0.00043835,14]
[330502924,1719522647608,-151.0,0.00043835,14]
[330502925,1719522647618,-494.30227921,0.00043835,120]
[330502926,1719522647627,-1385.3,0.00043835,120]
[330502927,1719522647636,-18804.5,0.00043835,120]
[330502928,1719522647645,-1666.57,0.00043835,120]
[330502929,1719522647655,-500.0,0.00043835,120]
[330502930,1719522647663,-500.0,0.00043835,120]
[330502931,1719522647673,-500.0,0.00043835,120]
[330502932,1719522647682,-500.0,0.00043835,120]
[330502933,1719522647691,-500.0,0.00043835,120]
[330502934,1719522647701,-8831.25,0.00043835,120]
[330502935,1719522647710,-500.34106532,0.00043835,120]
[330502936,1719522647720,-500.0,0.00043835,120]
[330502937,1719522647729,-1000.17,0.00043835,120]
[330502938,1719522647739,-1000.17,0.00043835,120]
[330502939,1719522647748,-500.0,0.00043835,120]
[330502940,1719522647758,-1000.17,0.00043835,120]
[330502941,1719522647769,-1000.17,0.00043835,120]
[330502942,1719522647777,-1000.17,0.00043835,120]
[330502943,1719522647786,-1000.17,0.00043835,120]
[330502944,1719522647795,-1000.17,0.00043835,120]
[330502945,1719522647804,-1000.17,0.00043835,120]
[330502946,1719522647813,-1000.17,0.00043835,120]
[330502947,1719522647822,-1000.17,0.00043835,120]
[330502948,1719522647831,-1000.17,0.00043835,120]
[330502949,1719522647922,-151.0,0.00043835,14]
[330502950,1719522647932,-1000.17,0.00043835,120]
[330502951,1719522647941,-1000.17,0.00043835,120]
[330502952,1719522647950,-1000.17,0.00043835,120]
[330502953,1719522647959,-1000.17,0.00043835,120]
[330502954,1719522647969,-1000.17,0.00043835,120]
[330502955,1719522647978,-1000.17,0.00043835,120]
[330502956,1719522647987,-1000.17,0.00043835,120]
[330502957,1719522647997,-1000.17,0.00043835,120]
[330502958,1719522648007,-1000.17,0.00043835,120]
[330502959,1719522648016,-1000.17,0.00043835,120]
[330502960,1719522648025,-1000.17,0.00043835,120]
[330502961,1719522648034,-500.0,0.00043835,120]
[330502962,1719522648043,-1000.17,0.00043835,120]
[330502963,1719522648053,-1000.18270127,0.00043835,120]
[330502964,1719522648063,-6931.87,0.00043835,120]
[330502965,1719522648073,-500.0,0.00043835,120]
[330502966,1719522648083,-500.0,0.00043835,120]
[330502967,1719522648092,-500.0,0.00043835,120]
[330502968,1719522648101,-500.0,0.00043835,120]
[330502969,1719522648110,-1266.93,0.00043835,120]
[330502970,1719522648120,-500.0,0.00043835,120]
[330502971,1719522648129,-500.0,0.00043835,120]
[330502972,1719522648139,-500.0,0.00043835,120]
[330502973,1719522648149,-2802.94,0.00043835,120]
[330502974,1719522648160,-151.0,0.00043835,14]
[330502975,1719522648170,-151.0,0.00043835,14]
[330502976,1719522648179,-500.0,0.00043835,120]
[330502977,1719522648188,-297.33,0.00043835,7]
[330502978,1719522648197,-834.84,0.00043835,120]
[330502979,1719522648207,-500.0,0.00043835,120]
[330502980,1719522648216,-500.0,0.00043835,120]
[330502981,1719522648226,-151.0,0.00043835,14]
[330502982,1719522648235,-151.0,0.00043835,14]
[330502983,1719522648245,-500.0,0.00043835,120]
[330502984,1719522648254,-555.78318254,0.00043835,120]
[330502985,1719522648263,-151.0,0.00043835,14]
[330502986,1719522648274,-450.50213552,0.00043835,120]
[330502987,1719522648284,-500.0,0.00043835,120]
[330502988,1719522648294,-514.42667384,0.00043835,120]
[330502989,1719522648303,-500.0,0.00043835,120]
[330502990,1719522648312,-500.0,0.00043835,120]
[330502991,1719522648322,-500.0,0.00043835,120]
[330502992,1719522648331,-500.0,0.00043835,120]
[330502993,1719522648341,-814.65,0.00043835,120]
[330502994,1719522648350,-500.0,0.00043835,120]
[330502995,1719522648360,-500.0,0.00043835,120]
[330502996,1719522648370,-500.0,0.00043835,120]
[330502997,1719522648380,-500.0,0.00043835,120]
[330502998,1719522648389,-500.0,0.00043835,120]
[330502999,1719522648398,-525.58,0.00043835,120]
[330503000,1719522648408,-1179.19,0.00043835,120]
[330503001,1719522648417,-500.0,0.00043835,120]
[330503002,1719522648427,-521.463144,0.00043835,14]
[330503003,1719522648436,-521.463144,0.00043835,14]
[330503004,1719522648447,-10032.6581777,0.00043835,14]
[330503005,1719522648460,-521.463144,0.00043835,14]
[330503006,1719522648470,-521.463144,0.00043835,14]
[330503007,1719522648480,-500.0,0.00043835,120]
[330503008,1719522648491,-500.0,0.00043835,120]
[330503009,1719522648500,-151.0,0.00043835,14]
[330503010,1719522648509,-151.0,0.00043835,14]
[330503011,1719522648520,-500.0,0.00043835,120]
[330503012,1719522648530,-500.0,0.00043835,120]
[330503013,1719522648541,-638.98,0.00043835,120]
[330503014,1719522648551,-748.18,0.00043835,120]
[330503015,1719522648561,-151.0,0.00043835,14]
[330503016,1719522648570,-151.0,0.00043835,14]
[330503017,1719522648580,-500.0,0.00043835,120]
[330503018,1719522648589,-500.0,0.00043835,120]
[330503019,1719522648599,-720.88,0.00043835,120]
[330503020,1719522648609,-500.0,0.00043835,120]
[330503021,1719522648618,-975.47,0.00043835,120]
[330503022,1719522648628,-1152.26,0.00043835,120]
[330503023,1719522648638,-500.0,0.00043835,120]
[330503024,1719522648647,-500.0,0.00043835,120]
[330503025,1719522648657,-500.0,0.00043835,120]
[330503026,1719522648667,-151.0,0.00043835,14]
[330503027,1719522648677,-151.0,0.00043835,14]
[330503028,1719522648687,-500.0,0.00043835,120]
[330503029,1719522648696,-500.0,0.00043835,120]
[330503030,1719522648705,-500.0,0.00043835,120]
[330503031,1719522648714,-1970.8,0.00043835,120]
[330503032,1719522648723,-500.0,0.00043835,120]
[330503033,1719522648732,-903.57,0.00043835,120]
[330503034,1719522648742,-555.18698193,0.00043835,120]
[330503035,1719522648751,-500.0,0.00043835,120]
[330503036,1719522648761,-500.0,0.00043835,120]
[330503037,1719522648773,-151.0,0.00043835,14]
[330503038,1719522648782,-934.77,0.00043835,120]
[330503039,1719522648794,-500.0,0.00043835,120]
[330503040,1719522648803,-790.0,0.00043835,120]
[330503041,1719522648812,-818.38,0.00043835,14]
[330503042,1719522648822,-500.0,0.00043835,120]
[330503043,1719522648831,-500.0,0.00043835,10]
[330503044,1719522648840,-3098.19,0.00043835,120]
[330503045,1719522648850,-500.0,0.00043835,120]
[330503046,1719522648859,-825.24,0.00043835,120]
[330503047,1719522648868,-500.0,0.00043835,120]
[330503048,1719522648878,-5830.6,0.00043835,120]
[330503049,1719522648887,-16212.39,0.00043835,120]
[330503050,1719522648896,-500.0,0.00043835,120]
[330503051,1719522648905,-500.0,0.00043835,120]
[330503052,1719522648915,-2258.47,0.00043835,120]
[330503053,1719522648924,-670.32,0.00043835,120]
[330503054,1719522648933,-500.0,0.00043835,120]
[330503055,1719522648942,-522.06,0.00043835,120]
[330503056,1719522648951,-712.32,0.00043835,120]
[330503057,1719522648961,-12021.59,0.00043835,120]
[330503058,1719522648970,-500.0,0.00043835,120]
[330503059,1719522648979,-500.0,0.00043835,120]
[330503060,1719522648988,-500.0,0.00043835,120]
[330503061,1719522648997,-500.85134663,0.00043835,120]
[330503062,1719522649007,-3593.33,0.00043835,120]
[330503063,1719522649016,-500.0,0.00043835,120]
[330503064,1719522649025,-151.0,0.00043835,14]
[330503065,1719522649035,-500.0,0.00043835,120]
[330503066,1719522649044,-500.0,0.00043835,120]
[330503067,1719522649054,-500.0,0.00043835,120]
[330503068,1719522649064,-500.0,0.00043835,120]
[330503069,1719522649073,-500.0,0.00043835,120]
[330503070,1719522649158,-500.0,0.00043835,120]
[330503071,1719522649167,-500.0,0.00043835,120]
[330503072,1719522649176,-500.0,0.00043835,120]
[330503073,1719522649185,-507.78989841,0.00043835,120]
[330503074,1719522649195,-500.0,0.00043835,120]
[330503075,1719522649204,-16385.01,0.00043835,120]
[330503076,1719522649214,-561.41,0.00043835,120]
[330503077,1719522649224,-247.27041412,0.00043835,120]
[330503078,1719522649234,-500.0,0.00043835,2]
[330503079,1719522649244,-2459.21,0.00043835,120]
[330503080,1719522649253,-500.78,0.00043835,120]
[330503081,1719522649261,-904.82,0.00043835,120]
[330503082,1719522649272,-500.0,0.00043835,120]
[330503083,1719522649281,-500.0,0.00043835,120]
[330503084,1719522649290,-6733.22,0.00043835,120]
[330503085,1719522649299,-500.0,0.00043835,120]
[330503086,1719522649308,-151.0,0.00043835,14]
[330503087,1719522649317,-1698.78,0.00043835,120]
[330503088,1719522649326,-625.0,0.00043835,120]
[330503089,1719522649335,-12179.68,0.00043835,120]
[330503090,1719522649344,-500.0,0.00043835,2]
[330503091,1719522649353,-151.0,0.00043835,14]
[330503092,1719522649363,-151.0,0.00043835,14]
[330503093,1719522649372,-500.0,0.00043835,120]
[330503094,1719522649382,-151.0,0.00043945,120]
[330503095,1719522649391,-22038.86917602,0.0004399,7]
[330503096,1719522649401,-14087.3605275,0.0004399,5]
[330503097,1719522649411,-151.0,0.0004399,14]
[330503098,1719522649420,-151.0,0.0004399,14]
[330503099,1719522649431,-151.0,0.0004399,14]
[330503100,1719522649441,-151.0,0.0004399,14]
[330503101,1719522649452,-154.83742071,0.00044,4]
[330503102,1719522649467,-500.0,0.00044,120]
[330503103,1719522649476,-8807.30552249,0.00044,120]
[330503104,1719522649485,-400.0,0.00044,30]
[330503105,1719522649495,-500.0,0.00044382,120]
[330503106,1719522649506,-500.0,0.00044382,120]
[330503107,1719522649516,-500.0,0.00044382,120]
[330503108,1719522649525,-500.0,0.00044382,120]
[330503109,1719522649534,-500.0,0.00044382,120]
[330503110,1719522649545,-422.8,0.00044382,120]
[330503111,1719522649554,-500.0,0.00044383,120]
[330503112,1719522649564,-500.0,0.00044383,120]
[330503113,1719522649573,-500.0,0.00044383,120]
[330503114,1719522649583,-500.0,0.00044383,7]
[330503115,1719522649592,-500.0,0.00044383,120]
[330503116,1719522649602,-500.0,0.00044383,120]
[330503117,1719522649611,-503.03,0.00044383,120]
[330503118,1719522649621,-500.0,0.00044383,120]
[330503119,1719522649630,-500.0,0.00044383,120]
[330503120,1719522649639,-500.0,0.00044383,120]
[330503121,1719522649648,-500.0,0.00044383,120]
[330503122,1719522649657,-500.0,0.00044383,120]
[330503123,1719522649668,-500.0,0.00044383,120]
[330503124,1719522649677,-500.0,0.00044383,120]
[330503125,1719522649692,-500.0,0.00044383,120]
[330503126,1719522649714,-562.18,0.00044383,120]
[330503127,1719522649732,-500.0,0.00044383,120]
[330503128,1719522649753,-500.0,0.00044383,120]
[330503129,1719522649777,-500.0,0.00044383,120]
[330503130,1719522649792,-500.0,0.00044383,120]
[330503131,1719522649811,-500.0,0.00044383,120]
[330503132,1719522649826,-500.0,0.00044383,120]
[330503133,1719522649844,-500.0,0.00044383,120]
[330503134,1719522649864,-535.96989366,0.00044383,120]
[330503135,1719522649882,-1355.95,0.00044383,120]
[330503136,1719522649894,-834.81,0.00044383,120]
[330503137,1719522649913,-500.0,0.00044383,120]
[330503138,1719522649929,-500.0,0.00044383,120]
[330503139,1719522649944,-500.0,0.00044383,120]
[330503140,1719522649957,-500.0,0.00044383,120]
[330503141,1719522649972,-500.0,0.00044383,120]
[330503142,1719522649986,-590.5,0.00044383,120]
[330503143,1719522650001,-500.0,0.00044383,120]
[330503144,1719522650016,-500.0,0.00044383,120]
[330503145,1719522650030,-506.87418551,0.00044383,120]
[330503146,1719522650045,-500.0,0.00044383,120]
[330503147,1719522650059,-989.26,0.00044383,120]
[330503148,1719522650074,-500.0,0.00044383,120]
[330503149,1719522650089,-500.0,0.00044383,120]
[330503150,1719522650103,-200.0,0.00044383,7]
[330503151,1719522650117,-1754.88,0.00044383,120]
[330503152,1719522650132,-500.0,0.00044383,120]
[330503153,1719522650146,-500.0,0.00044383,120]
[330503154,1719522650161,-675.21,0.00044383,120]
[330503155,1719522650175,-500.0,0.00044383,30]
[330503156,1719522650188,-500.0,0.00044383,120]
[330503157,1719522650203,-500.0,0.00044383,120]
[330503158,1719522650217,-500.0,0.00044383,120]
[330503159,1719522650232,-500.0,0.00044383,120]
[330503160,1719522650246,-500.0,0.00044383,120]
[330503161,1719522650261,-616.41,0.00044383,120]
[330503162,1719522650276,-643.38,0.00044383,120]
[330503163,1719522650290,-500.0,0.00044383,120]
[330503164,1719522650304,-538.9167782,0.00044383,120]
[330503165,1719522650318,-500.0,0.00044383,120]
[330503166,1719522650332,-562.54960881,0.00044383,120]
[330503167,1719522650347,-519.88267789,0.00044383,120]
[330503168,1719522650362,-500.0,0.00044383,120]
[330503169,1719522650376,-500.0,0.00044383,30]
[330503170,1719522650386,-500.0,0.00044383,120]
[330503171,1719522650395,-500.0,0.00044383,120]
[330503172,1719522650405,-586.16,0.00044383,120]
[330503173,1719522650414,-500.0,0.00044383,120]
[330503174,1719522650423,-500.0,0.00044383,7]
[330503175,1719522650433,-500.0,0.00044383,120]
[330503176,1719522650442,-500.0,0.00044383,120]
[330503177,1719522650454,-500.0,0.00044383,120]
[330503178,1719522650465,-500.0,0.00044383,120]
[330503179,1719522650475,-500.0,0.00044383,120]
[330503180,1719522650484,-500.0,0.00044383,120]
[330503181,1719522650671,-500.0,0.00044383,120]
[330503182,1719522650699,-500.0,0.00044383,120]
[330503183,1719522650712,-966.71,0.00044383,120]
[330503184,1719522650722,-551.21,0.00044383,120]
[330503185,1719522650731,-500.0,0.00044383,120]
[330503186,1719522650741,-500.0,0.00044383,120]
[330503187,1719522650751,-500.0,0.00044383,120]
[330503188,1719522650760,-472.93913674,0.00044383,120]
[330503189,1719522650770,-500.0,0.00044383,120]
[330503190,1719522650779,-545.57528504,0.00044383,120]
[330503191,1719522650789,-500.0,0.00044383,120]
[330503192,1719522650798,-500.57639903,0.00044383,120]
[330503193,1719522650808,-500.0,0.00044383,30]
[330503194,1719522650817,-500.0,0.00044383,120]
[330503195,1719522650827,-501.32901979,0.00044383,120]
[330503196,1719522650836,-500.0,0.00044383,120]
[330503197,1719522650845,-500.0,0.00044383,120]
[330503198,1719522650854,-500.0,0.00044383,120]
[330503199,1719522650864,-511.56556164,0.00044383,120]
[330503200,1719522650873,-500.0,0.00044383,120]
[330503201,1719522650883,-500.0,0.00044383,120]
[330503202,1719522650892,-500.0,0.00044383,120]
[330503203,1719522650902,-500.0,0.00044383,120]
[330503204,1719522650912,-500.0,0.00044383,120]
[330503205,1719522650921,-500.0,0.00044383,120]
[330503206,1719522650931,-526.26442224,0.00044383,120]
[330503207,1719522650940,-500.0,0.00044383,120]
[330503208,1719522650950,-558.11186247,0.00044383,120]
[330503209,1719522650959,-392.42933765,0.00044383,120]
[330503210,1719522650969,-500.0,0.00044383,120]
[330503211,1719522650978,-275.22011533,0.00044383,120]
[330503212,1719522650987,-500.0,0.00044383,120]
[330503213,1719522650996,-500.0,0.00044383,120]
[330503214,1719522651006,-500.0,0.00044383,120]
[330503215,1719522651016,-500.0,0.00044383,120]
[330503216,1719522651025,-972.51,0.00044383,120]
[330503217,1719522651035,-500.0,0.00044383,120]
[330503218,1719522651045,-500.0,0.00044383,120]
[330503219,1719522651054,-500.0,0.00044383,120]
[330503220,1719522651064,-500.0,0.00044383,120]
[330503221,1719522651073,-500.0,0.00044383,120]
[330503222,1719522651083,-500.0,0.00044383,120]
[330503223,1719522651092,-500.0,0.00044383,120]
[330503224,1719522651101,-500.0,0.00044383,120]
[330503225,1719522651111,-500.0,0.00044383,120]
[330503226,1719522651120,-500.0,0.00044383,120]